[Event "Gibraltar Challengers B 2019"]
[Site "Caleta"]
[Date "2019.01.29"]
[Round "4"]
[White "Kozarcanin, Sead"]
[Black "Osuna Vega, Enrique"]
[Result "1/2-1/2"]
[ECO "A01"]
[WhiteElo "2048"]
[BlackElo "2116"]
[Annotator "NA"]
[PlyCount "124"]
[EventDate "2019.01.18"]
[EventType "swiss"]
[EventCountry "GGB"]
[SourceTitle "playchess.com"]
[Source "ChessBase"]
[SourceQuality "1"]
[TimeControl "6600+10"]

1. b3 {[%emt 0:00:00]} e5 {[%emt 0:00:00]} 2. Bb2 {[%emt 0:00:00]} Nc6 {[%emt 0:00:03]} 3. e3 {[%emt 0:00:00]} g6 {[%emt 0:00:27]} 4. c4 {[%emt 0:01:24] A01: Nimzowitsch-Larsen Opening} (4. h4 h5 5. c4 Bg7 6. Nf3 d6 7. d3 Nf6 8. Nc3 a6 9. Be2 Ne7 10. Qc2 Nf5 11. O-O-O Ng4 {0-1 (30) Jobava,B (2627)-Svidler,P (2737) St Petersburg 2018}) 4... Bg7 {[%emt 0:00:38]} 5. g3 {[%emt 0:01:45]} Nge7 {[%emt 0:02:32]} 6. Bg2 {[%emt 0:00:22]} d5 {[%emt 0:00:33]} 7. cxd5 {[%emt 0:02:00]} Nxd5 {[%emt 0:00:08]} 8. a3 {[%emt 0:00:06]} O-O {[%emt 0:02:34]} 9. Ne2 {[%emt 0:02:29]} Be6 {[%emt 0:01:36]} 10. d4 $146 {[%emt 0:01:26]} ({Predecessor:} 10. Nbc3 f5 11. O-O Qd7 {1-0 (33) Cvek,R (2460)-Studnicka,T (2300) Plzen 2004}) 10... Nb6 {[%emt 0:10:00]} 11. O-O {[%emt 0:05:21]} exd4 {[%emt 0:00:09]} 12. Bxc6 {[%emt 0:05:00]} bxc6 {[%emt 0:03:04]} 13. Bxd4 {[%emt 0:02:14]} Bxd4 {[%emt 0:04:36]} 14. Nxd4 {[%emt 0:00:34]} Bh3 {[%emt 0:00:17]} 15. Re1 {[%emt 0:00:48]} c5 {[%emt 0:02:49]} 16. Nc2 {[%emt 0:06:12]} Qf6 {[%emt 0:01:16]} 17. f3 {[%emt 0:03:08]} Rad8 {[%emt 0:01:42]} 18. Qe2 {[%emt 0:01:21]} Be6 {[%emt 0:03:03]} 19. Nd2 {[%emt 0:07:26]} Qb2 {[%emt 0:11:50]} 20. Rec1 {[%emt 0:00:34]} Nd5 {[%emt 0:08:01]} 21. Ne4 $1 {[%emt 0:09:29]} Qxb3 {[%emt 0:05:49]} 22. Nxc5 {[%emt 0:02:57]} Nc3 {[%emt 0:02:17]} 23. Qe1 {[%emt 0:00:55]} Qc4 {[%emt 0:01:51]} (23... Qb2 $11) 24. Nd4 {[%emt 0:01:42]} Qxc5 {[%emt 0:01:43]} 25. Qxc3 {[%emt 0:01:50]} (25. Rxc3 $16 Qd6 26. Rac1) 25... Qe5 {[%emt 0:02:44]} 26. Nxe6 {[%emt 0:13:00]} Qxe6 {[%emt 0:00:25]} 27. Rd1 {[%emt 0:00:45]} Rb8 {[%emt 0:02:51]} 28. Rd3 {[%emt 0:01:03]} Rfd8 {[%emt 0:05:23]} 29. Rad1 {[%emt 0:02:15]} Rxd3 {[%emt 0:00:04]} 30. Rxd3 {[%emt 0:01:31]} c6 {[%emt 0:02:11]} 31. e4 {[%emt 0:01:22]} h5 {[%emt 0:05:20]} 32. Rd1 {[%emt 0:03:38]} Kh7 {[%emt 0:02:31]} 33. Rc1 {[%emt 0:03:41]} Rd8 {[%emt 0:03:31]} 34. Qxc6 {[%emt 0:02:47]} Rd1+ {[%emt 0:00:17]} 35. Kf2 {[%emt 0:00:14]} Qa2+ {[%emt 0:03:22]} 36. Rc2 {[%emt 0:03:04]} Qa1 {[%emt 0:02:33]} 37. Qc4 {[%emt 0:01:30]} Qf6 {[%emt 0:00:35]} 38. e5 {[%emt 0:02:14]} Qb6+ {[%emt 0:01:44]} 39. Kg2 {[%emt 0:03:26]} Rg1+ {[%emt 0:02:21]} 40. Kh3 {[%emt 0:00:04]} Qb7 {[%emt 0:00:16]} 41. Qc6 {[%emt 0:01:46]} Qb3 {[%emt 0:07:00]} 42. e6 {[%emt 0:06:29]} Qd3 {[%emt 0:00:02]} 43. Qe4 {[%emt 0:01:38]} (43. exf7 $16 Qf5+ 44. Kh4) 43... Qxe4 {[%emt 0:02:16]} 44. fxe4 {[%emt 0:00:02]} fxe6 {[%emt 0:00:03]} 45. Rc7+ {[%emt 0:01:16]} Kh6 {[%emt 0:00:01]} 46. Rxa7 {[%emt 0:00:01]} Re1 {[%emt 0:00:10]} 47. Kg2 {[%emt 0:02:31]} Rxe4 {[%emt 0:00:05]} 48. h4 $11 {[%emt 0:00:13]} g5 {[%emt 0:00:29]} 49. hxg5+ {[%emt 0:00:36]} Kxg5 {[%emt 0:00:02]} 50. Kf3 {[%emt 0:00:34]} Rc4 {[%emt 0:00:02]} 51. Ra5+ {[%emt 0:00:06]} Kg6 {[%emt 0:00:47]} 52. a4 {[%emt 0:00:03]} h4 {[%emt 0:00:16]} 53. gxh4 {[%emt 0:00:25]} Rxh4 {[%emt 0:00:03]} 54. Ra8 {[%emt 0:00:08]} Kf5 {[%emt 0:00:40]} 55. Rf8+ {[%emt 0:00:07]} Ke5 {[%emt 0:00:04]} 56. a5 {[%emt 0:00:09]} Rh3+ {[%emt 0:00:02]} 57. Kg2 {[%emt 0:00:04]} Ra3 {[%emt 0:00:02]} 58. Ra8 {[%emt 0:00:06]} Ke4 {[%emt 0:01:09]} 59. a6 {[%emt 0:00:05]} e5 {[%emt 0:00:04]} 60. a7 {[%emt 0:00:12]} Ra2+ {[%emt 0:00:43]} 61. Kg3 {[%emt 0:00:02]} Ra3+ {[%emt 0:00:01]} 62. Kg4 {[%emt 0:00:01]} Ke3 {[%emt 0:00:32]} 1/2-1/2

[Event "Gibraltar Challengers B 2019"]
[Site "Caleta"]
[Date "2019.01.29"]
[Round "4"]
[White "Dasaolu, Rotimi"]
[Black "Livesey, R Nigel"]
[Result "1/2-1/2"]
[ECO "B10"]
[WhiteElo "2038"]
[BlackElo "1797"]
[Annotator "NA RC"]
[PlyCount "54"]
[EventDate "2019.01.18"]
[EventType "swiss"]
[EventCountry "GGB"]
[SourceTitle "playchess.com"]
[Source "ChessBase"]
[SourceQuality "1"]
[TimeControl "6600+10"]

1. e4 {[%emt 0:00:00]} c6 {[%emt 0:00:00]} 2. d3 {[%emt 0:00:37]} d5 {[%emt 0:01:06]} 3. Nd2 {[%emt 0:00:08]} e5 {[%emt 0:01:39]} 4. Ngf3 {[%emt 0:00:12]} Bd6 {[%emt 0:01:00]} 5. g3 {[%emt 0:00:16]} Nf6 {[%emt 0:00:52]} 6. Bg2 {[%emt 0:00:11]} O-O {[%emt 0:00:38]} 7. O-O {[%emt 0:00:15]} Nbd7 {[%emt 0:02:19]} 8. c3 {[%emt 0:00:48]} a5 {[%emt 0:02:07]} 9. Qc2 {[%emt 0:00:42]} dxe4 {[%emt 0:01:05]} 10. dxe4 {[%emt 0:00:04]} Nb6 {[%emt 0:00:38]} 11. Rd1 {[%emt 0:00:38]} Qc7 {[%emt 0:01:44]} 12. Nf1 {[%emt 0:00:24]} Be6 {[%emt 0:04:47]} 13. Bg5 {[%emt 0:05:42]} Be7 {[%emt 0:00:34]} 14. Nh4 {[%emt 0:00:39]} h6 {[%emt 0:02:12]} 15. Bxf6 {[%emt 0:01:54]} Bxf6 {[%emt 0:00:12]} 16. Nf5 {[%emt 0:00:09]} Bxf5 {[%emt 0:00:31]} 17. exf5 {[%emt 0:04:23]} Rad8 {[%emt 0:04:21]} 18. Nd2 {[%emt 0:00:00]} Be7 {[%emt 0:03:32]} 19. Qe4 {[%emt 0:01:11]} Bf6 {[%emt 0:03:56]} 20. Qg4 {[%emt 0:00:23]} Qe7 {[%emt 0:02:07]} 21. Ne4 {[%emt 0:00:49]} Rfe8 {[%emt 0:02:08]} 22. Bf1 {[%emt 0:01:49]} Nc8 {[%emt 0:06:10]} 23. Rd3 {[%emt 0:21:56]} Rxd3 {[%emt 0:01:43]} 24. Bxd3 {[%emt 0:00:03]} Rd8 {[%emt 0:00:20]} 25. Bc2 {[%emt 0:02:48]} Nd6 {[%emt 0:02:04]} 26. Rd1 {[%emt 0:01:50]} Nxe4 {[%emt 0:01:11]} 27. Bxe4 {[%emt 0:00:12]} Rd6 {[%emt 0:00:59]} 1/2-1/2

[Event "Gibraltar Challengers B 2019"]
[Site "Caleta"]
[Date "2019.01.29"]
[Round "4"]
[White "Cramling Bellon, Anna"]
[Black "Saber, Yasser"]
[Result "0-1"]
[ECO "A85"]
[WhiteElo "2025"]
[BlackElo "2201"]
[Annotator "NA RC"]
[PlyCount "108"]
[EventDate "2019.01.18"]
[EventType "swiss"]
[EventCountry "GGB"]
[SourceTitle "playchess.com"]
[Source "ChessBase"]
[SourceQuality "1"]
[TimeControl "6600+10"]

1. d4 {[%emt 0:00:00]} d6 {[%emt 0:04:56]} 2. Nf3 {[%emt 0:00:04]} g6 {[%emt 0:00:08]} 3. c4 {[%emt 0:00:15]} f5 {[%emt 0:00:04]} 4. Nc3 {[%emt 0:00:30]} Nf6 {[%emt 0:00:05]} 5. Qc2 {[%emt 0:06:00]} Bg7 {[%emt 0:01:05]} 6. e4 {[%emt 0:03:44]} fxe4 {[%emt 0:00:45] A85: Dutch Defence: 2 c4 Nf6 3 Nc3} 7. Nxe4 {[%emt 0:00:08]} Nxe4 {[%emt 0:04:07]} 8. Qxe4 {[%emt 0:00:10]} Nc6 {[%emt 0:00:22]} 9. a3 {[%emt 0:29:40]} (9. Bd2 Bf5 10. Qe3 O-O 11. Bd3 Bxd3 12. Qxd3 e5 13. dxe5 dxe5 14. Qxd8 Raxd8 {0-1 (25) Arkell,K (2505)-L'Ami,E (2619) Douglas 2015}) 9... O-O {[%emt 0:02:04]} 10. Be2 {[%emt 0:05:23]} Bf5 {[%emt 0:02:17]} 11. Qh4 {[%emt 0:00:42]} e5 {[%emt 0:00:59]} 12. Bg5 {[%emt 0:05:59]} Qe8 $146 {[%emt 0:00:03]} 13. dxe5 {[%emt 0:09:39]} dxe5 {[%emt 0:02:33]} ({Black should play} 13... Bxe5 $17 14. Ra2 Bg7) 14. O-O {[%emt 0:05:06]} e4 {[%emt 0:01:03]} 15. Nd2 {[%emt 0:01:20]} Nd4 {[%emt 0:00:05]} 16. Bg4 {[%emt 0:02:19] [#]} (16. Rae1 $1 $11) 16... h6 $1 {[%emt 0:03:38]} 17. Be3 {[%emt 0:02:39]} Rd8 {[%emt 0:07:56]} 18. Rad1 {[%emt 0:02:08]} Qe6 {[%emt 0:04:37]} 19. Nb3 {[%emt 0:18:37]} c5 {[%emt 0:24:03]} (19... Bxg4 $17 20. Nxd4 Qc8) 20. Nxc5 {[%emt 0:07:53]} Qc8 {[%emt 0:00:09]} 21. Bxf5 {[%emt 0:02:07]} Qxf5 {[%emt 0:15:42]} 22. Nb3 {[%emt 0:07:39]} Ne2+ {[%emt 0:16:15] Discovered Attack} 23. Kh1 {[%emt 0:00:00]} g5 {[%emt 0:05:06]} 24. Qh5 {[%emt 0:00:24]} Rxd1 {[%emt 0:00:12]} 25. Rxd1 {[%emt 0:00:01]} Nf4 {[%emt 0:00:31]} 26. Bxf4 {[%emt 0:00:08]} (26. Nd4 $1 $14 {is the one way to stay ahead.}) 26... Qxf4 {[%emt 0:00:28]} 27. Rf1 {[%emt 0:01:40]} e3 {[%emt 0:00:02]} 28. Qe2 {[%emt 0:00:02]} exf2 {[%emt 0:01:24]} 29. Nc5 {[%emt 0:00:09]} Qf7 {[%emt 0:04:43]} 30. Qe6 {[%emt 0:00:20]} Qxe6 31. Nxe6 {[%emt 0:00:01]} Re8 {[%emt 0:00:36]} 32. Rxf2 {[%emt 0:00:18]} Rxe6 {[%emt 0:00:03]} 33. g3 {[%emt 0:00:03]} g4 {[%emt 0:00:21]} 34. Rd2 {[%emt 0:00:16]} b6 {[%emt 0:00:49]} 35. Kg2 {[%emt 0:00:13]} Re4 {[%emt 0:00:18]} 36. Rc2 {[%emt 0:00:07]} Bd4 {[%emt 0:00:13]} 37. b4 {[%emt 0:00:11]} Re1 {[%emt 0:03:59]} 38. h3 {[%emt 0:00:01]} Rg1+ {[%emt 0:00:17]} 39. Kh2 {[%emt 0:00:04]} gxh3 {[%emt 0:00:06]} 40. Kxh3 {[%emt 0:00:08]} Be5 {[%emt 0:00:15]} 41. Re2 {[%emt 0:00:29]} Rxg3+ {[%emt 0:00:22]} 42. Kh4 {[%emt 0:00:01]} Rg5 {[%emt 0:00:17]} 43. c5 {[%emt 0:00:17]} bxc5 44. bxc5 {[%emt 0:00:01]} Kf7 {[%emt 0:00:19]} 45. c6 {[%emt 0:00:12]} Ke6 {[%emt 0:00:14]} 46. Rd2 {[%emt 0:00:17]} Bg3+ {[%emt 0:00:25]} 47. Kh3 {[%emt 0:00:06]} Bd6 {[%emt 0:00:09]} 48. Rc2 {[%emt 0:00:16]} Rc5 {[%emt 0:00:20]} 49. Re2+ {[%emt 0:00:08]} Be5 {[%emt 0:00:06]} 50. Kg4 {[%emt 0:00:08]} Rxc6 {[%emt 0:00:11]} 51. Kh5 {[%emt 0:00:01]} Kf5 {[%emt 0:00:53]} 52. Rf2+ {[%emt 0:00:09]} Bf4 {[%emt 0:00:03]} 53. Rb2 {[%emt 0:00:21]} Rc1 {[%emt 0:00:20]} 54. Rb5+ {[%emt 0:00:02]} Be5 {[%emt 0:00:02]} 0-1

[Event "Gibraltar Challengers B 2019"]
[Site "Caleta"]
[Date "2019.01.29"]
[Round "4"]
[White "Kakulidis, Ellen"]
[Black "Pereira Lopez, Aketza"]
[Result "1-0"]
[ECO "B07"]
[WhiteElo "2021"]
[BlackElo "1861"]
[Annotator "NA RC"]
[PlyCount "93"]
[EventDate "2019.01.18"]
[EventType "swiss"]
[EventCountry "GGB"]
[SourceTitle "playchess.com"]
[Source "ChessBase"]
[SourceQuality "1"]
[TimeControl "6600+10"]

1. d4 {[%emt 0:05:58]} g6 {[%emt 0:00:00]} 2. e4 {[%emt 0:00:22]} Bg7 {[%emt 0:00:00]} 3. Ne2 {[%emt 0:00:16]} d6 {[%emt 0:00:17]} 4. g3 {[%emt 0:01:30]} Nd7 {[%emt 0:00:25]} 5. Bg2 {[%emt 0:00:14]} Ngf6 {[%emt 0:00:49]} 6. Nbc3 {[%emt 0:00:33]} O-O {[%emt 0:00:33]} 7. h3 {[%emt 0:00:09]} Rb8 {[%emt 0:01:47]} 8. a4 {[%emt 0:01:02]} b6 {[%emt 0:01:04]} 9. O-O {[%emt 0:01:21]} c5 {[%emt 0:00:08]} 10. Be3 {[%emt 0:01:19]} cxd4 {[%emt 0:01:04]} 11. Bxd4 {[%emt 0:01:43]} a6 {[%emt 0:01:06] B07: Pirc Defence: Miscellaneous Systems} 12. f4 {[%emt 0:05:06]} (12. Nd5 Bb7 13. c4 e5 14. Be3 Nxd5 15. cxd5 a5 16. b4 axb4 17. Rb1 Ba6 18. Rxb4 f5 19. exf5 gxf5 {½-½ (55) Motylev,A (2655)-Bocharov,D (2595) Moscow 2016}) 12... Nc5 {[%emt 0:05:09]} 13. g4 {[%emt 0:04:59]} Bb7 {[%emt 0:01:51]} 14. Ng3 {[%emt 0:01:44]} Ne6 $146 {[%emt 0:12:13]} ({Predecessor:} 14... h6 15. Qd2 Qc7 16. Rae1 Rbd8 17. Qf2 a5 18. e5 dxe5 19. Bxe5 {0-1 (37) Smith,R (2333)-Ker,A (2330) Auckland 2008}) 15. Be3 {[%emt 0:01:52]} Rc8 {[%emt 0:04:01]} 16. e5 {[%emt 0:05:06]} Bxg2 {[%emt 0:02:01]} 17. exf6 {[%emt 0:03:13]} Bxf1 {[%emt 0:00:02]} 18. fxg7 {[%emt 0:00:08]} Kxg7 {[%emt 0:01:10]} 19. Kxf1 {[%emt 0:03:35]} Nc5 {[%emt 0:09:41]} 20. Kg1 {[%emt 0:12:54]} e6 {[%emt 0:07:05]} 21. Qe1 {[%emt 0:10:52]} Qc7 {[%emt 0:10:54]} 22. Rd1 {[%emt 0:01:49]} (22. Bd4+ $18 Kg8 23. Nge4 Nxe4 24. Qxe4 (24. Nxe4 f5 $16)) 22... d5 {[%emt 0:05:09]} 23. Rd2 {[%emt 0:11:50]} Qc6 {[%emt 0:06:23]} 24. Bd4+ {[%emt 0:02:11]} Kg8 {[%emt 0:00:57]} 25. g5 {[%emt 0:01:05]} ({Don't take} 25. Qe5 $6 f6 $16) 25... Nd7 {[%emt 0:07:03]} 26. Nf1 {[%emt 0:01:51]} f6 {[%emt 0:04:19]} 27. Nh2 {[%emt 0:03:17]} (27. gxf6 $18 Nxf6 28. Qe5) 27... e5 {[%emt 0:06:11]} 28. fxe5 {[%emt 0:02:21]} fxe5 {[%emt 0:00:03] [#]} 29. Bf2 $1 {[%emt 0:04:50]} ({Don't take} 29. Bxe5 Rce8 $14) 29... d4 {[%emt 0:00:54]} 30. Ne4 {[%emt 0:01:03]} Qxa4 {[%emt 0:01:38]} 31. c3 {[%emt 0:02:01]} dxc3 {[%emt 0:01:25]} 32. Nxc3 {[%emt 0:04:41]} Qc6 {[%emt 0:00:01]} 33. Ng4 {[%emt 0:01:06]} Rce8 {[%emt 0:08:09]} 34. Ne4 {[%emt 0:01:36]} Re7 {[%emt 0:00:15]} 35. Rxd7 {[%emt 0:02:27]} Rxd7 {[%emt 0:00:58]} 36. Nef6+ {[%emt 0:00:44]} Rxf6 {[%emt 0:02:39]} 37. Nxf6+ {[%emt 0:00:33]} Kf7 {[%emt 0:00:13]} 38. Ng4 {[%emt 0:02:28]} Qb5 {[%emt 0:02:15]} 39. Nxe5+ {[%emt 0:00:40]} Ke7 {[%emt 0:00:47]} 40. Nxd7+ {[%emt 0:00:48]} Kxd7 {[%emt 0:00:05]} 41. Qd2+ $18 {[%emt 0:00:14]} Kc6 {[%emt 0:01:09]} 42. Qc3+ {[%emt 0:00:49]} Kb7 {[%emt 0:00:41]} 43. Qf3+ {[%emt 0:00:46]} Kc7 {[%emt 0:00:44]} 44. Bg3+ {[%emt 0:00:13]} Kc8 {[%emt 0:02:16]} 45. Qf8+ {[%emt 0:00:05]} Kb7 {[%emt 0:00:20]} 46. Qe7+ {[%emt 0:00:12]} Kc6 {[%emt 0:00:54]} 47. Qd6+ {[%emt 0:00:07] Kd5 [%clk 00:00:39] [%emt 00:00:13]} 1-0

[Event "Gibraltar Challengers B 2019"]
[Site "Caleta"]
[Date "2019.01.29"]
[Round "4"]
[White "Bryn, Askild"]
[Black "Maisuradze, Nino"]
[Result "0-1"]
[ECO "B23"]
[WhiteElo "2010"]
[BlackElo "2215"]
[Annotator "NA RC"]
[PlyCount "130"]
[EventDate "2019.01.18"]
[EventType "swiss"]
[EventCountry "GGB"]
[SourceTitle "playchess.com"]
[Source "ChessBase"]
[SourceQuality "1"]
[TimeControl "6600+10"]

{[%evp 33,123,-56,32767,-54,-21,-33,-36,-50,-16,32767,0,0,0,0,4,0,0,0,0,-9,0,-79,-77,-106,0,0,0,0,43,24,34,22,77,71,91,32767,105,32767,86,54,70,32767,112,56,57,50,32767,32767,95,32767,121,-79,-77,-78,-82,-156,-150,32767,32767,32767,-425,-640,32767,32767,-586,32767,32767,-553,32767,32767,32767,32767,32767,32767,32767,32767,-750,32767,-818,32767,32767,32767,32767,32767,32767,-5052,-5073,32767,-5204,32767,-29980,-6115]} 1. e4 {[%emt 0:03:23]} c5 {[%emt 0:00:00]} 2. Nc3 {[%emt 0:00:46]} Nc6 {[%emt 0:00:28]} 3. f4 {[%emt 0:00:13]} g6 {[%emt 0:00:17]} 4. Nf3 {[%emt 0:00:10]} Bg7 {[%emt 0:00:04]} 5. Bb5 {[%emt 0:00:43]} Nd4 {[%emt 0:00:23]} 6. O-O {[%emt 0:00:20]} a6 {[%emt 0:00:13]} 7. Bd3 {[%emt 0:01:33]} d6 {[%emt 0:01:01]} 8. Nxd4 {[%emt 0:00:54]} cxd4 {[%emt 0:00:08]} 9. Ne2 {[%emt 0:00:06]} Nf6 {[%emt 0:00:51]} 10. c3 {[%emt 0:12:43]} dxc3 {[%emt 0:00:15]} 11. dxc3 {[%emt 0:03:07]} O-O {[%emt 0:03:25]} 12. h3 {[%emt 0:07:52]} Qb6+ $146 {[%emt 0:02:16] B23: Closed Sicilian: Lines without g3} ({Predecessor:} 12... b5 13. Nd4 e5 14. Nf3 Bb7 15. Qe1 exf4 16. Bxf4 Re8 17. Nd2 Nxe4 18. Nxe4 Bxe4 19. Bxe4 d5 20. Rd1 Rxe4 {½-½ (40) Gdanski,J (2530)-Van Wely,L (2636) Warsaw 1999}) 13. Kh2 {[%emt 0:01:27]} Bd7 {[%emt 0:00:53]} 14. Qb3 {[%emt 0:15:03]} Qxb3 {[%emt 0:07:43]} 15. axb3 {[%emt 0:00:40]} Bc6 {[%emt 0:00:09]} 16. Ng3 {[%emt 0:03:10]} a5 {[%emt 0:04:02]} 17. Re1 {[%emt 0:06:10]} Nd7 {[%emt 0:04:40]} 18. Be3 {[%emt 0:05:23]} h5 {[%emt 0:05:49]} 19. Nf1 {[%emt 0:05:18]} b5 {[%emt 0:14:48]} 20. Nd2 {[%emt 0:13:09]} a4 {[%emt 0:08:27]} 21. b4 {[%emt 0:02:35]} Rfc8 {[%emt 0:02:11]} 22. Nb1 {[%emt 0:01:01]} Rab8 {[%emt 0:05:19]} 23. Na3 {[%emt 0:01:44]} e5 {[%emt 0:01:03]} 24. f5 {[%emt 0:05:40]} gxf5 {[%emt 0:01:28]} 25. exf5 {[%emt 0:00:08]} d5 {[%emt 0:00:46]} 26. Be2 {[%emt 0:00:26]} Nf6 {[%emt 0:06:58]} 27. g4 {[%emt 0:03:33]} (27. Ba7 $1 $11 {was the only way to keep the balance.}) 27... hxg4 {[%emt 0:00:14]} 28. hxg4 {[%emt 0:00:01] [#]} Ne4 {[%emt 0:00:47]} ({Better is} 28... d4 $1 $17 {[%cal Rd4e3][%mdl 512]} 29. cxd4 exd4) 29. Bf3 {[%emt 0:02:21]} Nd6 {[%emt 0:01:03]} 30. Rad1 {[%emt 0:01:23]} Ne4 {[%emt 0:15:54]} (30... d4 $5 {[%cal Rc6f3]} 31. Bxc6 Rxc6 32. cxd4 exd4 33. Bxd4 Nc4 $11) 31. Bxe4 {[%emt 0:01:57]} dxe4 {[%emt 0:00:01]} 32. Rd2 {[%emt 0:00:56]} Rd8 {[%emt 0:00:30] [#]} (32... Bf8 $11 {keeps the balance.}) 33. Red1 $1 {[%emt 0:00:12]} Rxd2+ {[%emt 0:01:47]} 34. Rxd2 {[%emt 0:00:06]} Bf8 {[%emt 0:00:29]} 35. Bg5 {[%emt 0:01:29]} e3 {[%emt 0:02:27]} (35... Kg7 $11) 36. Bxe3 {[%emt 0:01:18]} f6 {[%emt 0:02:00]} 37. Kg3 {[%emt 0:00:25]} Be7 {[%emt 0:00:53]} 38. Nc2 {[%emt 0:03:05]} ({White should play} 38. Bc5 $16 Rd8 39. Rxd8+ Bxd8 40. c4) 38... Rc8 {[%emt 0:00:44]} 39. Bb6 {[%emt 0:02:01]} Kf7 {[%emt 0:00:42]} 40. Rh2 {[%emt 0:00:18]} Bd6 {[%emt 0:01:17]} 41. Be3 {[%emt 0:00:20]} Be4 {[%emt 0:02:50]} ({Better is} 41... Kg7 $14) 42. Ne1 $2 {[%emt 0:01:18] [#]} (42. Na3 $16 {and life is bright.}) 42... a3 $1 {[%emt 0:00:38]} 43. bxa3 {[%emt 0:01:32]} Rxc3 {[%emt 0:00:02] Double Attack} 44. Kf2 {[%emt 0:00:21]} ({White should play} 44. Rh7+ $15 Kg8 45. Rd7 Bxb4 46. axb4 Rxe3+ 47. Kf2) 44... Rxa3 {[%emt 0:00:07]} 45. Rh7+ {[%emt 0:00:01]} Kg8 {[%emt 0:00:19]} 46. Rh6 {[%emt 0:00:04]} Bxb4 {[%emt 0:00:27]} 47. Rg6+ {[%emt 0:01:01]} Kf7 {[%emt 0:00:08]} 48. g5 {[%emt 0:00:15]} Bxe1+ {[%emt 0:01:47]} 49. Ke2 {[%emt 0:00:01]} fxg5 {[%emt 0:00:50]} 50. Bxg5 {[%emt 0:00:18]} Bg3 {[%emt 0:00:38]} 51. Rf6+ {[%emt 0:00:10]} Kg7 {[%emt 0:00:09]} 52. Rg6+ {[%emt 0:00:04]} Kf7 {[%emt 0:00:26]} 53. Rf6+ {[%emt 0:00:07]} Ke8 {[%emt 0:00:03]} 54. Re6+ {[%emt 0:00:06]} Kd7 {[%emt 0:00:08]} 55. Re7+ {[%emt 0:00:08]} Kd6 {[%emt 0:00:35]} 56. f6 {[%emt 0:00:27]} Bf3+ {[%emt 0:00:45]} 57. Kd2 {[%emt 0:00:03]} Bf4+ {[%emt 0:02:25]} 58. Bxf4 {[%emt 0:00:01]} exf4 {[%emt 0:00:02]} 59. Re8 {[%emt 0:00:30]} Bh5 {[%emt 0:01:05]} 60. Rb8 {[%emt 0:00:12]} Rb3 {[%emt 0:01:20]} 61. Rb6+ {[%emt 0:00:10]} Ke5 {[%emt 0:00:25]} 62. Kc2 $19 {[%emt 0:00:06]} Rb4 {[%emt 0:00:04]} 63. Kc3 {[%emt 0:00:03]} Rc4+ {[%emt 0:00:25]} 64. Kb3 {[%emt 0:00:03]} Rc5 {[%emt 0:00:06]} 65. Kb4 {[%emt 0:00:05]} Rd5 {[%emt 0:00:27]} 0-1

[Event "Gibraltar Challengers B 2019"]
[Site "Caleta"]
[Date "2019.01.29"]
[Round "4"]
[White "Weeramantry, Sunil"]
[Black "Verneuil, Pascal"]
[Result "1-0"]
[ECO "B23"]
[WhiteElo "2007"]
[BlackElo "2114"]
[Annotator "NA RC"]
[PlyCount "74"]
[EventDate "2019.01.18"]
[EventType "swiss"]
[EventCountry "GGB"]
[SourceTitle "playchess.com"]
[Source "ChessBase"]
[SourceQuality "1"]
[TimeControl "6600+10"]

1. e4 {[%emt 0:00:00]} c5 {[%emt 0:02:22]} 2. Nc3 {[%emt 0:00:18]} Nc6 {[%emt 0:00:32]} 3. f4 {[%emt 0:00:12]} e6 {[%emt 0:00:15]} 4. Nf3 {[%emt 0:00:06]} d5 {[%emt 0:00:06]} 5. Bb5 {[%emt 0:00:07]} Nf6 {[%emt 0:00:10]} 6. d3 {[%emt 0:00:18]} Be7 {[%emt 0:01:18]} 7. O-O {[%emt 0:00:14]} O-O {[%emt 0:00:07]} 8. Bxc6 {[%emt 0:00:41]} bxc6 {[%emt 0:00:04]} 9. e5 {[%emt 0:01:08]} Nd7 {[%emt 0:03:19]} 10. Qe1 {[%emt 0:00:38]} c4 {[%emt 0:01:02]} 11. d4 {[%emt 0:09:34] B23: Closed Sicilian: Lines without g3} Rb8 {[%emt 0:07:56]} 12. f5 $146 {[%emt 0:05:47]} ({Predecessor:} 12. Rb1 a5 13. Qg3 f5 14. Be3 Ba6 15. Kh1 Qe8 16. Rg1 Qh5 17. Qf2 Rb7 18. h3 Rfb8 {½-½ (38) Savin,V (2334)-Tsygankov,E (2410) ICCF email 2014}) 12... Kh8 {[%emt 0:01:51]} 13. fxe6 {[%emt 0:13:53]} fxe6 {[%emt 0:00:07]} 14. Qg3 {[%emt 0:00:30]} c5 {[%emt 0:17:38]} 15. Bg5 {[%emt 0:18:10] [#]} Rf5 {[%emt 0:09:38]} ({Don't play} 15... Rxb2 16. Qh4 $15) (15... Rxf3 $1 $17 {[%mdl 512]} 16. Rxf3 Bxg5 17. dxc5 Bb7) 16. h4 {[%emt 0:39:03]} (16. Bxe7 $11 Qxe7 17. Qg4 cxd4 18. Qxd4) 16... Ba6 {[%emt 0:01:19]} ({But not} 16... Rxb2 17. Bxe7 Qxe7 18. Ng5 $17) 17. Qg4 {[%emt 0:00:46]} Nb6 {[%emt 0:06:09]} 18. Kh1 {[%emt 0:03:46]} Rc8 {[%emt 0:31:16]} 19. dxc5 {[%emt 0:00:48]} Rxc5 {[%emt 0:00:06]} 20. Nd4 {[%emt 0:00:47]} Bxg5 {[%emt 0:02:00]} 21. Nxe6 {[%emt 0:00:26]} Qg8 {[%emt 0:01:37]} 22. Nxc5 {[%emt 0:05:41]} Bc8 {[%emt 0:01:42]} 23. Rxf5 {[%emt 0:01:05]} Be7 {[%emt 0:00:18]} 24. e6 {[%emt 0:02:35]} Bxc5 {[%emt 0:00:37]} 25. Re1 {[%emt 0:00:09]} g6 {[%emt 0:04:34]} 26. Nxd5 {[%emt 0:04:03]} Qe8 {[%emt 0:07:13]} 27. Qe4 {[%emt 0:00:41]} Nxd5 {[%emt 0:00:47]} 28. Rxd5 {[%emt 0:00:09]} Be7 {[%emt 0:00:04]} 29. Qe5+ {[%emt 0:00:22]} Kg8 {[%emt 0:00:13]} 30. Rf1 {[%emt 0:00:14]} Bf8 {[%emt 0:01:42]} 31. Re1 {[%emt 0:00:36]} Qe7 {[%emt 0:00:21]} 32. Qg5 {[%emt 0:00:37]} Kg7 {[%emt 0:02:18]} 33. Qxe7+ {[%emt 0:00:04]} Bxe7 {[%emt 0:00:04]} 34. Rd7 {[%emt 0:00:35]} Kf6 {[%emt 0:00:16]} 35. Rxa7 {[%emt 0:00:06]} h5 {[%emt 0:00:42]} 36. Rf1+ $18 {[%emt 0:00:06]} Kxe6 {[%emt 0:00:13]} 37. Re1+ {[%emt 0:00:02]} Kd5 {[%emt 0:00:14]} 1-0